bitfinex/quotes_ETHUSD_20260106
["timestamp","ask_amount","ask_price","bid_price","bid_amount"]
[1767701264955,1.71163895,3239.2,3238.1,0.95136777]
[1767701265336,0.809,3239.1,3238.1,0.95136777]
[1767701265536,0.002,3238.9,3238.1,0.95136777]
[1767701265861,0.002,3238.9,3237.8,0.95236777]
[1767701265862,0.90263895,3238.9,3237.8,0.95236777]
[1767701266062,0.90263895,3238.9,3237.8,0.001]
[1767701266432,0.90263895,3238.9,3237.8,3.08947327]
[1767701266655,1.70963895,3238.8,3237.8,3.70729039]
[1767701266838,0.90063895,3238.7,3237.8,0.61881712]
[1767701267044,0.90063895,3238.5,3237.8,0.001]
[1767701269042,3.98858361,3238.4,3237.8,0.001]
[1767701269364,0.809,3238.3,3237.8,0.001]
[1767701269865,1.70963895,3238.3,3237.8,0.001]
[1767701270062,0.90063895,3238.2,3237.8,0.001]
[1767701270638,0.809,3238.1,3237.8,0.001]
[1767701271190,3.08728515,3239.1,3238.0,0.95136777]
[1767701271371,0.90263895,3239.2,3238.0,0.95136777]
[1767701271372,0.809,3239.0,3238.1,0.71282108]
[1767701271833,0.90063895,3238.8,3238.1,0.71282108]
[1767701272252,0.90063895,3238.8,3237.8,3.08943733]
[1767701272562,0.90063895,3238.8,3237.8,6.17795422]
[1767701273163,0.90063895,3238.8,3237.8,0.001]
[1767701273668,0.90063895,3238.7,3237.8,0.001]
[1767701274312,0.811,3238.9,3237.8,0.95236777]
[1767701275377,0.811,3238.9,3237.9,7.12821077]
[1767701275577,0.811,3238.9,3238.0,0.71292108]
[1767701277297,0.811,3238.9,3238.0,1.66428885]
[1767701277870,0.811,3238.9,3238.1,6.1774615]
[1767701278195,0.811,3238.9,3238.2,0.95136777]
[1767701278364,0.002,3239.2,3238.5,0.95136777]
[1767701278700,0.809,3239.0,3238.5,0.95136777]
[1767701278867,0.002,3239.2,3238.5,0.95136777]
[1767701278868,3.11153137,3239.6,3238.5,0.95136777]
[1767701279064,1.12015314,3239.5,3238.5,0.95136777]
[1767701280079,0.31115314,3239.5,3238.5,3.08781285]
[1767701280288,0.809,3239.4,3238.6,0.95136777]
[1767701280685,0.809,3239.4,3238.1,0.0318823]
[1767701280686,0.809,3239.4,3238.1,0.001]
[1767701280882,0.809,3239.4,3238.2,0.95136777]
[1767701281114,1.79561024,3239.4,3238.2,4.03946954]
[1767701281287,0.98661024,3239.3,3238.2,0.95136777]
[1767701281473,1.01132754,3239.1,3238.1,0.001]
[1767701281875,0.93564448,3238.9,3238.1,0.001]
[1767701282103,6.17531724,3238.7,3238.1,0.001]
[1767701282509,1.1152055,3239.3,3238.1,0.9233732]
[1767701282693,0.809,3238.8,3238.1,0.001]
[1767701283005,1.71992718,3238.8,3238.1,0.001]
[1767701283989,0.0247173,3239.1,3238.1,0.001]
[1767701284188,0.809,3238.7,3238.1,0.001]
[1767701284386,3.89670279,3238.7,3238.1,0.001]
[1767701284605,4.28637307,3238.7,3238.1,0.001]
[1767701285008,7.37407586,3238.7,3238.1,0.001]
[1767701286506,0.93564448,3238.6,3238.1,0.001]
[1767701287812,3.08784931,3238.5,3238.1,0.001]
[1767701288489,0.91092718,3238.4,3237.8,0.001]
[1767701289108,1.62206149,3238.4,3237.8,0.001]
[1767701289795,4.7100722,3238.4,3237.8,0.001]
[1767701291207,1.62206149,3238.4,3237.8,0.001]
[1767701291417,3.08787957,3238.5,3237.8,0.001]
[1767701291615,0.93564448,3238.4,3237.8,0.001]
[1767701291782,7.08700722,3238.3,3237.8,0.001]
[1767701291982,7.08700722,3238.3,3237.3,0.001]
[1767701291983,0.91092718,3238.1,3237.3,0.001]
[1767701293816,0.93564448,3237.7,3236.5,0.9223732]
[1767701293993,0.91092718,3237.5,3236.4,0.9223732]
[1767701294311,0.91092718,3237.5,3236.5,3.08970178]
[1767701294618,0.91092718,3237.5,3236.5,3.08972694]
[1767701295120,0.91092718,3237.5,3236.4,4.01222138]
[1767701295321,0.91092718,3237.5,3236.5,0.40122214]
[1767701295927,3.08889849,3237.4,3236.5,0.40122214]
[1767701296224,7.08872416,3237.4,3236.3,3.08993552]
[1767701296431,0.91092718,3237.4,3236.3,0.9223732]
[1767701296723,3.08884735,3237.5,3236.3,0.9223732]
[1767701297723,3.08884735,3237.5,3236.4,4.01222612]
[1767701298530,0.91092718,3237.4,3236.0,0.9223732]
[1767701298837,1.60958347,3237.4,3236.2,0.9223732]
[1767701299734,0.69865629,3237.4,3236.4,0.9223732]
[1767701299929,0.809,3237.3,3236.4,0.9223732]
[1767701300103,0.93564448,3238.0,3236.4,0.9223732]
[1767701300104,0.809,3237.2,3236.4,0.9223732]
[1767701301508,0.809,3237.2,3236.5,0.001]
[1767701303040,3.89809998,3237.2,3236.5,0.001]
[1767701303241,7.37700996,3237.2,3236.5,0.001]
[1767701303445,4.28793627,3237.2,3236.5,0.001]
[1767701303814,7.37706254,3237.2,3236.5,0.001]
[1767701304015,4.28793627,3237.2,3236.5,0.001]
[1767701304218,3.08893504,3237.4,3236.5,0.9233732]
[1767701304739,0.809,3237.3,3236.5,0.9233732]
[1767701306441,0.809,3237.3,3236.5,4.01312487]
[1767701306743,0.809,3237.3,3236.6,0.9223732]
[1767701307125,3.89799621,3237.3,3236.6,0.9223732]
[1767701307315,4.59668351,3237.3,3236.6,0.9223732]
[1767701307640,8.5966069,3237.3,3236.5,0.001]
[1767701310240,0.91092718,3237.2,3236.5,0.001]
[1767701310816,6.17836952,3237.1,3236.5,0.001]
[1767701311020,0.91092718,3237.0,3236.5,0.001]
[1767701311344,0.70892967,3236.9,3236.5,0.001]
[1767701311642,0.809,3236.8,3236.5,0.001]
[1767701312344,0.809,3236.8,3235.8,0.98972548]
[1767701312716,0.809,3236.8,3235.8,4.08013063]
[1767701312917,0.809,3236.8,3235.8,4.08009208]
[1767701313215,3.89854873,3236.8,3235.8,4.79715498]
[1767701313416,0.809,3236.8,3235.9,0.98972548]
[1767701314746,3.08917895,3237.2,3235.9,0.98972548]
[1767701314747,3.08910647,3237.2,3235.9,0.98972548]
[1767701315048,0.809,3237.1,3235.9,0.98972548]
[1767701315422,3.08928019,3237.0,3236.1,0.98972548]
[1767701315721,3.57758004,3237.0,3236.1,0.98972548]
[1767701316647,3.08928019,3237.0,3236.1,0.98972548]
[1767701317665,3.08918476,3237.1,3236.1,0.98972548]
[1767701317862,0.81,3237.0,3236.1,0.98972548]
[1767701318458,1.79471829,3237.0,3236.1,0.98972548]
[1767701319966,6.17875126,3236.9,3236.1,0.98972548]
[1767701320261,3.88672259,3236.9,3236.1,0.98972548]
[1767701320461,6.97609822,3236.9,3236.1,0.98972548]
[1767701321671,4.87144088,3236.9,3236.1,0.98972548]
[1767701321970,7.96081651,3236.9,3236.1,0.98972548]
[1767701322136,4.87144088,3236.9,3236.1,0.98972548]
[1767701323171,1.78206525,3236.9,3236.1,0.98972548]
[1767701323360,0.79734696,3236.9,3236.2,0.98972548]
[1767701323672,3.89931135,3237.0,3236.2,0.98972548]
[1767701324083,6.98864487,3237.0,3236.2,0.98972548]
[1767701324369,7.97336316,3237.0,3236.2,0.98972548]
[1767701325564,0.98471829,3236.9,3236.4,0.001]
[1767701325758,0.98471829,3236.8,3236.4,0.001]
[1767701325973,0.0247173,3237.3,3236.4,0.001]
[1767701325974,0.0247173,3238.0,3236.6,0.98972548]
[1767701326291,0.002,3237.0,3236.6,0.97066822]
[1767701326588,0.81,3236.9,3236.6,0.97066822]
[1767701326764,0.81,3236.9,3236.4,0.99072548]
[1767701326964,0.81,3236.9,3236.5,0.40806121]
[1767701327291,0.002,3237.0,3236.6,0.98972548]
[1767701327292,0.812,3237.0,3236.6,0.98972548]
[1767701327494,0.002,3237.0,3236.7,0.98972548]
[1767701327694,0.812,3237.0,3236.7,0.98972548]
[1767701329566,0.7959398,3237.0,3236.7,0.98972548]
[1767701332991,0.7959398,3237.0,3236.8,0.98972548]
[1767701336319,0.81,3236.9,3236.8,0.98972548]
[1767701336524,0.94393627,3237.3,3236.4,4.5782453]
[1767701338024,0.94393627,3237.3,3236.4,7.66804937]
[1767701338597,0.94393627,3237.2,3236.4,4.5782453]
[1767701338822,0.94393627,3237.2,3236.7,0.001]
[1767701339122,0.94393627,3236.9,3236.7,0.001]
[1767701342023,0.002,3237.0,3236.7,0.001]
[1767701342902,0.002,3237.0,3236.7,0.92630414]
[1767701343232,0.83887463,3237.3,3236.7,4.5782453]
[1767701343391,0.83887463,3237.3,3236.7,5.34504557]
[1767701344106,0.02687463,3237.2,3236.7,5.34504557]
[1767701344620,0.02687463,3237.2,3236.7,0.76780027]
[1767701344922,0.02687463,3237.2,3236.7,0.001]
[1767701346628,0.812,3237.3,3236.7,0.001]
[1767701346797,0.812,3237.3,3236.7,0.92630414]
[1767701347828,0.002,3237.3,3236.7,0.92630414]
[1767701348843,3.90099982,3237.3,3236.7,0.92630414]
[1767701349048,3.90099982,3237.3,3236.8,0.92530414]
[1767701351060,0.812,3237.3,3236.8,0.92530414]
[1767701351245,3.90100026,3237.3,3237.0,0.92630414]
[1767701352063,0.812,3237.3,3237.0,0.92630414]
[1767701353574,3.90099543,3237.3,3237.0,0.92630414]
[1767701353747,6.98999086,3237.3,3236.7,0.001]
[1767701353943,6.98999086,3237.3,3236.8,0.92530414]
[1767701353944,3.90099543,3237.3,3236.8,0.92530414]
[1767701354469,3.90099555,3237.3,3236.8,0.92530414]
[1767701354675,3.90100315,3237.3,3236.8,0.92530414]
[1767701354828,0.812,3237.3,3236.8,0.92530414]
[1767701355469,3.90099827,3237.3,3236.8,0.92530414]
[1767701355782,3.90101343,3237.3,3236.8,0.92530414]
[1767701356230,0.812,3237.3,3236.8,0.92530414]
[1767701358367,3.90103135,3237.3,3236.8,0.92530414]
[1767701359565,6.9900627,3237.3,3236.8,0.92530414]
[1767701359884,7.90712434,3237.3,3236.7,0.001]
[1767701360051,7.90712434,3237.3,3236.7,0.92630414]
[1767701361665,8.69783677,3237.3,3236.5,0.92530414]
[1767701361870,3.08918476,3237.1,3236.5,0.92530414]
[1767701363289,6.17836952,3237.1,3236.5,0.92530414]
[1767701363490,3.08918476,3237.1,3236.5,0.92530414]
[1767701364192,3.08918476,3237.1,3236.8,0.001]
[1767701364392,3.08918476,3237.1,3236.5,0.92530414]
[1767701364762,6.17836952,3237.1,3236.5,0.92530414]
[1767701364964,0.91706164,3236.9,3234.2,3.2727173]
[1767701365170,1.72084575,3236.8,3236.0,0.92530414]
[1767701365789,0.91706164,3236.7,3236.0,0.92530414]
[1767701366297,4.00672089,3236.7,3236.0,0.92530414]
[1767701367377,0.91706164,3236.7,3236.1,0.92530414]
[1767701367572,4.00663022,3236.7,3236.1,0.92530414]
[1767701367966,7.0961988,3236.7,3236.1,0.92530414]
[1767701368386,4.00663022,3236.7,3236.1,0.92530414]
[1767701369204,7.0961988,3236.7,3236.1,0.92530414]
[1767701370179,4.00663022,3236.7,3236.1,0.92530414]
[1767701372574,7.0961988,3236.7,3236.1,0.92530414]
[1767701372780,3.08956858,3236.7,3235.8,0.9293687]
[1767701373077,7.13025111,3236.7,3235.9,0.40198144]
[1767701373273,7.13025111,3236.7,3235.7,0.9293687]
[1767701373274,0.95111395,3236.6,3235.7,0.9293687]
[1767701374810,7.13062885,3236.5,3235.7,0.9293687]
[1767701376005,0.95111395,3236.4,3235.7,0.9293687]
[1767701376387,0.95111395,3236.4,3236.0,0.001]
[1767701376595,0.95111395,3236.4,3235.5,1.69494647]
[1767701376790,4.04106234,3236.3,3235.6,0.4785707]
[1767701377106,4.04106234,3236.3,3235.5,0.76557777]
[1767701377107,0.95111395,3236.2,3235.5,0.76557777]
[1767701377491,0.95111395,3236.2,3235.3,0.9293687]
[1767701379023,3.09013936,3236.1,3235.3,0.9293687]
[1767701379311,7.13043793,3236.6,3235.4,0.9293687]
[1767701379516,0.81,3236.4,3235.4,0.9293687]
[1767701379813,1.76111395,3236.4,3235.4,0.9293687]
[1767701381612,3.08994839,3236.3,3235.4,0.9293687]
[1767701384694,3.08994839,3236.3,3235.5,0.9293687]
[1767701389022,3.08994839,3236.3,3235.6,0.001]
[1767701389349,0.002,3236.0,3235.6,0.9303687]
[1767701391841,0.002,3236.0,3235.6,0.001]
[1767701393732,0.002,3236.0,3235.6,0.9303687]
[1767701399675,0.002,3236.0,3235.7,0.97097001]
[1767701399959,4.0804127,3236.7,3235.8,0.97097001]
[1767701400263,7.98001604,3236.7,3235.8,0.97097001]
[1767701401660,0.95343202,3236.6,3235.8,0.97097001]
[1767701401861,0.87181436,3237.1,3235.9,0.91253728]
[1767701401862,4.10918638,3236.8,3235.9,0.91253728]
[1767701402076,4.10918638,3236.8,3236.1,0.91253728]
[1767701403046,0.002,3236.4,3236.1,0.91253728]
[1767701405238,0.002,3236.7,3236.1,0.91253728]
[1767701405681,0.95343202,3237.0,3236.4,0.91253728]
[1767701405858,0.81,3236.9,3236.4,0.91253728]
[1767701406058,1.76343202,3236.9,3236.1,0.91253728]
[1767701406258,0.95343202,3236.8,3236.2,0.40027305]
[1767701406652,0.95343202,3236.8,3236.1,0.91253728]
[1767701406991,4.04294843,3236.8,3236.1,0.91253728]
[1767701407287,0.95543202,3237.1,3236.2,0.91253728]
[1767701407494,3.08896274,3237.4,3236.7,0.91253728]
[1767701407785,7.13135945,3237.4,3236.7,0.91253728]
[1767701408765,0.95343202,3237.1,3236.3,0.91253728]
[1767701410107,0.95343202,3237.1,3236.4,0.91253728]
[1767701411190,4.04265961,3237.1,3236.4,0.91253728]
[1767701411612,0.95343202,3237.1,3236.4,0.91253728]
[1767701411781,4.04261951,3237.1,3236.4,0.91253728]
[1767701414078,0.95343202,3237.1,3236.4,0.91253728]
[1767701414277,3.08911477,3237.2,3236.5,1.31278563]
[1767701415418,3.08911477,3237.2,3236.7,0.001]
[1767701416021,0.95343202,3237.3,3236.7,0.001]
[1767701416521,0.81,3237.3,3236.7,0.91353728]
[1767701417385,3.89901168,3237.3,3236.7,0.91353728]
[1767701418694,3.08886672,3237.5,3236.7,0.91353728]
[1767701418915,3.08886672,3237.5,3236.9,0.91253728]
[1767701419225,3.08886672,3237.5,3236.9,0.91053728]
[1767701419400,0.00446959,3237.6,3236.9,0.91053728]
[1767701419715,0.81446959,3237.6,3236.9,0.91053728]
[1767701419913,0.81446959,3237.6,3237.0,0.39999963]
[1767701420117,0.81446959,3237.6,3237.1,0.91253728]
[1767701420312,0.00446959,3237.6,3237.1,0.91253728]
[1767701422002,3.08846508,3237.9,3237.2,0.91253728]
[1767701422224,3.08846508,3237.9,3237.2,0.91053728]
[1767701424026,6.1786535,3238.0,3237.2,0.91053728]
[1767701424219,7.13208552,3238.0,3237.2,0.91053728]
[1767701425123,0.95343202,3237.9,3237.2,0.91053728]
[1767701426495,3.08851689,3237.8,3237.2,0.91053728]
[1767701427305,0.002,3237.6,3237.2,0.91053728]
[1767701429729,0.002,3237.6,3237.0,1.31253691]
[1767701429924,0.002,3237.6,3237.0,0.91253728]
[1767701432535,0.002,3237.6,3237.0,0.87878872]
[1767701436413,4.06629064,3237.9,3237.3,0.92756917]
[1767701437234,4.06629064,3237.9,3237.0,0.92756917]
[1767701437617,4.06629064,3237.9,3237.1,0.92756917]
[1767701437818,4.06629064,3237.9,3237.2,1.32925145]
[1767701439695,4.06629064,3237.9,3237.5,0.001]
[1767701440052,0.002,3237.6,3237.5,0.001]
[1767701441341,0.002,3237.6,3236.9,0.92756917]
[1767701441644,0.97782146,3237.6,3236.9,0.92756917]
[1767701441976,0.97782146,3237.6,3237.0,0.40170076]
[1767701443054,0.97782146,3237.6,3237.0,3.49093503]
[1767701444055,0.97782146,3237.6,3237.0,0.40170076]
[1767701445080,0.97782146,3237.6,3237.0,3.49094542]
[1767701445656,0.97782146,3237.6,3237.0,4.41851459]
[1767701445966,0.97782146,3237.6,3237.1,0.75078888]
[1767701446479,0.002,3237.6,3237.1,1.67835805]
[1767701446681,0.002,3237.6,3237.2,0.92756917]
[1767701447385,0.97782146,3237.6,3237.1,0.75078888]
[1767701447562,0.97782146,3237.6,3237.0,0.92756917]
[1767701448085,0.002,3237.6,3237.1,0.92756917]
[1767701448282,0.002,3237.6,3237.2,0.92756917]
[1767701452294,0.002,3237.6,3237.5,0.001]
[1767701458308,0.9208059,3237.6,3236.8,8.65120761]
[1767701458509,0.002,3237.6,3237.0,0.98616385]
[1767701458909,0.002,3237.6,3236.9,4.26353613]
[1767701458910,0.9208059,3237.6,3236.9,2.16034069]
[1767701459212,0.9208059,3237.6,3236.9,5.24971617]
[1767701460829,0.9208059,3237.6,3237.0,0.98616385]
[1767701460997,0.9208059,3237.6,3237.0,4.0754393]
[1767701461194,0.9208059,3237.6,3237.1,0.52496161]
[1767701462030,0.9208059,3237.6,3237.0,0.98616385]
[1767701463027,0.002,3237.6,3237.0,0.97083461]
[1767701463328,0.002,3237.6,3237.1,0.92685169]
[1767701464334,0.002,3237.6,3237.3,0.92685169]
[1767701464635,0.002,3237.6,3237.2,0.001]
[1767701467456,0.002,3237.9,3237.3,0.92685169]
[1767701476250,0.002,3237.9,3237.6,0.001]
[1767701476639,0.97409964,3237.9,3237.6,0.001]
[1767701477355,0.002,3237.9,3237.6,0.001]
[1767701484166,0.97409964,3237.9,3237.6,0.001]
[1767701485365,0.002,3237.9,3237.6,0.001]
[1767701491173,0.002,3237.9,3237.6,0.98218559]
[1767701491872,0.002,3237.9,3237.6,0.001]
[1767701494076,0.91692497,3237.9,3237.2,0.001]
[1767701494267,0.91492497,3237.8,3237.2,0.001]
[1767701494458,0.91492497,3237.8,3237.0,4.06417523]
[1767701494768,4.00347282,3237.8,3237.0,0.97489861]
[1767701495091,4.00347282,3237.8,3237.0,4.064177]
[1767701495277,0.91492497,3237.8,3237.0,5.1625412]
[1767701495576,0.91492497,3237.8,3237.1,0.98118559]
[1767701496477,4.00346556,3237.8,3237.1,0.98118559]
[1767701496649,0.91492497,3237.8,3237.1,0.98118559]
[1767701497480,4.00345615,3237.8,3237.1,0.98118559]
[1767701498084,0.91492497,3237.8,3237.1,0.98118559]
[1767701498779,4.00345036,3237.8,3237.1,0.98118559]
[1767701500002,0.002,3237.5,3237.1,0.98118559]
[1767701502305,0.002,3237.5,3237.1,1.38822696]
[1767701504598,0.002,3237.5,3237.2,0.98118559]
[1767701510399,0.002,3237.5,3237.3,0.98118559]
[1767701516041,0.002,3237.5,3237.1,0.97875176]
[1767701520145,0.002,3237.5,3236.8,0.97875176]
[1767701520345,0.002,3237.5,3236.7,3.09051602]
[1767701520346,1.0226474,3237.5,3236.7,0.001]
[1767701520516,1.0206474,3237.3,3236.7,0.001]
[1767701520723,1.0206474,3237.1,3236.2,0.809]
[1767701520926,1.0206474,3237.1,3236.0,0.97875176]
[1767701522255,1.0206474,3237.1,3235.9,0.001]
[1767701523056,1.06238558,3236.9,3235.9,1.01104093]
[1767701524556,4.15185666,3236.8,3236.5,0.001]
[1767701524762,0.41518567,3236.7,3236.5,0.001]
[1767701526458,3.89828428,3237.0,3236.5,0.001]
[1767701526638,1.06238558,3236.9,3236.5,0.001]
[1767701530547,4.15181284,3236.9,3236.1,1.00761369]
[1767701530747,1.06238558,3236.8,3236.1,1.00761369]
[1767701532244,1.06238558,3236.8,3235.9,4.1013428]
[1767701532473,1.06238558,3236.8,3236.0,0.41013428]
[1767701536688,1.06238558,3236.8,3236.0,1.42017521]
[1767701536992,1.06238558,3236.7,3236.0,1.42017521]
[1767701537782,1.06238558,3236.7,3236.0,4.51040908]
[1767701538278,1.06238558,3236.7,3236.2,0.001]
[1767701538853,4.15197128,3236.7,3236.2,0.001]
[1767701539054,1.06238558,3236.7,3236.2,0.001]
[1767701544163,4.1519662,3236.7,3236.2,0.001]
[1767701544478,1.06238558,3236.6,3236.2,0.001]
[1767701548449,1.06238558,3236.8,3236.2,0.001]
[1767701549381,4.87597991,3236.8,3236.2,0.001]
[1767701550487,0.002,3236.4,3236.2,0.001]
[1767701566914,0.002,3236.4,3236.0,1.07138013]
[1767701567426,1.00041953,3237.4,3236.3,1.07200504]
[1767701567633,1.00041953,3237.4,3236.5,1.07200504]
[1767701567634,4.08937428,3237.4,3236.5,1.07200504]
[1767701567829,1.00041953,3237.4,3236.5,1.07200504]
[1767701568036,0.002,3237.5,3236.5,1.07200504]
[1767701568239,0.002,3237.5,3236.7,1.07200504]
[1767701568443,0.002,3237.5,3236.9,1.07200504]
[1767701570716,0.002,3237.5,3237.1,1.07200504]
[1767701572713,0.002,3237.5,3237.1,4.1611172]
[1767701573767,0.002,3237.7,3237.3,1.07200504]
[1767701574080,0.002,3237.7,3237.4,1.63680877]
[1767701574467,0.002,3237.7,3237.4,1.07200504]
[1767701575586,0.002,3237.7,3237.4,4.16087363]
[1767701577202,0.002,3237.7,3237.4,1.07200504]
[1767701577491,0.002,3237.7,3237.4,4.16086643]
[1767701577695,0.002,3237.8,3237.5,1.08141789]
[1767701577895,0.002,3237.9,3237.6,0.72591778]
[1767701578092,1.0476592,3237.9,3237.6,0.72591778]
[1767701578393,1.0476592,3237.9,3237.4,3.08886139]
[1767701578394,0.002,3237.9,3237.4,3.08886139]
[1767701579797,0.002,3237.9,3237.3,4.1704118]
[1767701581001,0.002,3237.9,3237.3,7.25940571]
[1767701586383,0.002,3237.9,3237.4,1.06657955]
[1767701587684,0.002,3238.3,3237.5,1.06657955]
[1767701588001,1.03985392,3238.2,3237.6,0.56426119]
[1767701588408,0.002,3238.3,3237.8,4.15509644]
[1767701589402,0.002,3238.3,3237.8,1.06657955]
[1767701591783,0.002,3238.3,3237.9,1.06657955]
[1767701592196,1.04185392,3238.3,3237.6,0.56526119]
[1767701592410,1.04185392,3238.3,3237.6,0.001]
[1767701594320,4.1299087,3238.3,3237.6,0.001]
[1767701597229,1.03985392,3238.2,3237.6,0.001]
[1767701602321,4.12801935,3238.2,3237.6,0.001]
[1767701602521,1.03985392,3238.2,3237.6,0.001]
[1767701603901,1.03985392,3238.2,3237.6,0.00018673]
[1767701613448,1.03985392,3238.2,3237.9,0.001]
[1767701614744,0.002,3238.3,3237.9,0.001]
[1767701619146,1.14197412,3238.3,3237.9,0.001]
[1767701619444,4.23008667,3238.3,3237.9,0.001]
[1767701621019,1.14197412,3238.3,3237.9,0.001]
[1767701621244,4.23005355,3238.3,3237.9,0.001]
[1767701624649,1.14197412,3238.3,3237.9,0.001]
[1767701624949,3.09007907,3238.3,3237.9,0.001]
[1767701625347,0.002,3238.0,3237.9,0.001]
[1767701631071,1.14197412,3238.0,3237.6,0.00018673]
[1767701635367,0.002,3238.0,3237.6,0.00018673]
[1767701637181,0.002,3238.0,3237.6,1.14519833]
[1767701637382,0.002,3238.0,3237.7,1.1450116]
[1767701638353,0.002,3238.0,3237.9,0.001]
[1767701639713,0.002,3238.0,3237.7,1.1450116]
[1767701639714,1.14371739,3238.0,3237.6,0.00018673]
[1767701639995,1.14371739,3238.0,3237.2,1.1460116]
[1767701641484,4.23211104,3238.0,3237.2,1.1460116]
[1767701641680,0.4232111,3237.9,3237.2,1.1460116]
[1767701643970,0.4232111,3237.9,3237.3,1.153534]
[1767701644173,4.23205094,3238.0,3237.3,1.153534]
[1767701648066,1.14371739,3238.0,3237.3,1.153534]
[1767701648698,1.14371739,3238.0,3237.4,1.153534]
[1767701648993,4.23205615,3238.0,3237.4,1.153534]
[1767701649786,1.14371739,3238.0,3237.4,1.153534]
[1767701650297,1.14371739,3238.0,3237.6,0.001]
[1767701650490,0.4232026,3237.9,3237.6,0.001]
[1767701650677,0.002,3237.7,3237.6,0.001]
[1767701651375,0.002,3237.7,3237.4,1.153534]
[1767701651778,0.002,3237.7,3237.4,1.151534]
[1767701652593,0.002,3237.7,3237.2,1.154534]
[1767701653194,0.002,3237.7,3237.2,0.001]
[1767701653396,1.09356164,3237.6,3237.2,0.001]
[1767701653699,0.002,3237.7,3237.2,0.001]
[1767701654001,1.09356164,3237.6,3237.2,0.001]
[1767701654200,1.09356164,3237.6,3236.5,0.809]
[1767701654398,0.31105151,3237.7,3236.5,0.809]
[1767701654399,1.09356164,3237.3,3236.5,0.809]
[1767701654717,0.31105151,3237.7,3235.7,17.631077]
[1767701654909,0.31105151,3237.7,3235.2,0.0247173]
[1767701654910,1.50206691,3237.6,3234.2,1.852]
[1767701655113,3.08880308,3237.5,3235.9,1.153534]
[1767701655270,3.08880308,3237.5,3236.1,1.153534]
[1767701655271,1.09356164,3237.4,3236.1,1.153534]
[1767701655605,1.09356164,3237.4,3235.4,0.0247173]
[1767701655606,1.09356164,3237.4,3235.9,1.153534]
[1767701655770,0.83145395,3237.0,3235.9,1.153534]
[1767701655969,2.20216691,3237.2,3235.9,1.153534]
[1767701655970,2.30561711,3236.9,3235.9,1.153534]
[1767701656181,0.66516316,3236.8,3235.9,1.153534]
[1767701656382,0.66516316,3236.7,3235.9,1.153534]
[1767701656584,0.65815595,3236.6,3236.4,1.153534]
[1767701656785,1.64045395,3236.9,3236.4,1.153534]
[1767701656786,0.80099176,3236.9,3236.4,1.153534]
[1767701657502,0.80099176,3236.9,3236.0,0.11418405]
[1767701657503,1.1200515,3236.4,3236.0,0.11418405]
[1767701657703,1.09356164,3236.3,3235.5,11.859041]
[1767701658005,1.11804944,3236.4,3235.7,0.11418405]
[1767701658993,1.11804944,3236.4,3235.3,0.809]
[1767701659303,1.11804944,3236.4,3235.4,3.312943]
[1767701659470,1.11804944,3236.4,3235.5,0.11741511]
[1767701659680,1.11804944,3236.4,3235.5,0.12060697]
[1767701659882,1.11804944,3236.4,3235.9,0.12060697]
[1767701660212,1.11804944,3236.4,3236.1,0.12060697]
[1767701661900,1.3530842,3236.8,3235.3,0.809]
[1767701662102,0.25952256,3236.8,3235.7,0.06958387]
[1767701662296,0.25952256,3236.8,3235.9,0.06958387]
[1767701662811,1.3530842,3236.8,3235.9,0.06958387]
[1767701663193,1.09356164,3236.8,3235.5,23.014924]
[1767701663411,1.09356164,3236.8,3235.7,11.769455]
[1767701663592,1.09356164,3236.8,3235.8,10.846144]
[1767701666006,1.09356164,3236.8,3235.8,9.961679]
[1767701666510,0.80099176,3236.9,3235.8,8.115679]
[1767701666511,1.09356164,3236.7,3235.8,8.115679]
[1767701666811,1.09356164,3236.7,3235.7,0.001]
[1767701672910,0.99612501,3236.6,3235.7,0.001]
[1767701677730,0.002,3236.3,3235.7,0.001]
[1767701688646,0.002,3236.6,3235.7,0.001]
[1767701688851,0.99612501,3236.9,3235.8,25.132703]
[1767701689053,0.99612501,3236.9,3236.0,17.776902]
[1767701689213,0.99612501,3236.9,3236.0,15.091399]
[1767701689618,0.99612501,3236.9,3236.0,10.488224]
[1767701689946,0.99612501,3236.9,3235.8,25.132703]
[1767701690130,0.99612501,3236.9,3236.0,0.001]
[1767701690330,0.002,3236.3,3236.0,0.001]
[1767701690525,0.84112501,3236.9,3236.1,0.06219492]
[1767701690726,0.68680258,3236.9,3236.1,0.06219492]
[1767701691257,0.68680258,3236.9,3236.0,0.001]
[1767701693665,0.99612501,3236.8,3236.0,0.001]
[1767701693826,0.99612501,3236.6,3236.0,0.001]
[1767701694024,0.99612501,3236.4,3236.0,0.001]
[1767701700556,0.81,3236.5,3236.4,0.01907018]
[1767701700882,1.7785528,3236.5,3236.4,0.01907018]
[1767701701057,0.0309044,3236.9,3236.4,0.01907018]
[1767701701244,0.81,3236.8,3236.4,0.01907018]
[1767701701842,1.76784283,3236.8,3236.4,0.01907018]
[1767701702160,2.73639566,3236.8,3236.4,0.01907018]
[1767701705672,1.77855283,3236.8,3236.4,0.01907018]
[1767701706063,1.77855283,3236.8,3236.4,0.98103823]
[1767701706064,0.81355283,3236.8,3236.4,0.98103823]
[1767701706368,0.95784283,3236.9,3236.4,0.01907018]
[1767701706570,0.95784283,3236.9,3236.4,0.01707018]
[1767701707045,0.81,3237.0,3236.4,0.97903823]
[1767701707374,0.95784283,3236.9,3236.4,0.01707018]
[1767701707873,0.81,3237.0,3236.4,0.97703823]
[1767701708257,0.95784283,3236.9,3236.4,0.01507018]
[1767701708578,0.81,3237.0,3236.5,0.96196805]
[1767701709071,0.809,3237.4,3236.5,0.96196805]
[1767701709275,0.95784283,3237.3,3236.5,0.96196805]
[1767701709755,0.809,3237.4,3236.5,0.96196805]
[1767701710140,1.76684283,3237.4,3236.4,0.01507018]
[1767701710341,0.95784283,3237.3,3236.4,0.01507018]
[1767701710976,0.95784283,3237.3,3236.4,0.97703823]
[1767701711371,0.809,3237.4,3236.4,0.97703823]
[1767701712181,0.95784283,3237.3,3236.4,0.01507018]
[1767701712787,0.809,3237.4,3236.4,0.97703823]
[1767701715159,0.65383827,3237.4,3236.8,0.96196805]
[1767701715484,0.002,3237.3,3236.8,0.96196805]
[1767701716484,0.002,3237.3,3236.5,0.96196805]